bitfinex/quotes_ETHUSD_20250526
["timestamp","ask_amount","ask_price","bid_price","bid_amount"]
[1748227603640,0.6,2546.6,2546.4,3.92699608]
[1748227603842,0.6,2546.6,2546.3,3.92718568]
[1748227604112,0.6,2546.6,2546.5,3.92695857]
[1748227604421,0.7769,2546.8,2546.4,3.92703734]
[1748227604930,0.7769,2546.8,2546.3,4.93963949]
[1748227605130,4.70343115,2546.8,2546.3,3.92721009]
[1748227605325,0.7769,2546.8,2546.3,3.92721009]
[1748227605525,0.7769,2546.8,2546.1,0.1]
[1748227605726,3.92665475,2546.7,2546.2,3.92734744]
[1748227605914,4.70352695,2546.8,2546.2,3.92742125]
[1748227606345,0.7769,2546.8,2546.3,3.92716261]
[1748227606544,0.7769,2546.8,2546.1,0.1]
[1748227606729,0.7769,2546.8,2546.4,3.92702844]
[1748227607256,0.7769,2546.8,2546.4,3.92709416]
[1748227607450,4.70340857,2546.8,2546.3,3.92723171]
[1748227608642,0.6,2546.6,2546.4,3.92703971]
[1748227608844,0.6,2546.6,2546.3,3.92718535]
[1748227609714,0.7976,2546.5,2546.1,8.1]
[1748227609919,0.7976,2546.5,2546.1,12.027558]
[1748227610357,0.7976,2546.5,2546.2,3.9273665]
[1748227610556,0.6,2546.6,2546.4,3.92701176]
[1748227610852,0.6,2546.6,2546.5,3.92695857]
[1748227611220,0.6,2546.6,2546.4,3.92699903]
[1748227613058,0.6,2546.6,2546.3,3.9272061]
[1748227614524,1.13402045,2546.6,2546.1,8.1]
[1748227614720,0.6,2546.6,2546.2,3.92742125]
[1748227614924,0.6,2546.6,2546.3,3.92723496]
[1748227615460,0.6,2546.6,2546.3,3.92722307]
[1748227615957,0.6,2546.6,2546.2,3.9273912]
[1748227616758,0.6,2546.6,2546.3,3.92719076]
[1748227617125,0.6,2546.6,2546.1,8.1]
[1748227617344,0.6,2546.6,2546.4,3.92702056]
[1748227617543,0.8137,2546.7,2546.4,3.92702056]
[1748227617947,0.8137,2546.7,2546.1,8.1]
[1748227618147,0.8137,2546.7,2546.3,3.92723995]
[1748227619132,0.8137,2546.7,2546.4,3.92710855]
[1748227619327,0.8137,2546.7,2546.3,3.92726023]
[1748227619867,0.8137,2546.7,2546.1,8.1]
[1748227620064,0.8137,2546.7,2546.3,3.92714291]
[1748227620225,0.8137,2546.7,2546.1,8.1]
[1748227620562,3.92691193,2546.6,2546.1,0.1]
[1748227621125,3.92697331,2546.5,2546.1,0.1]
[1748227621357,3.92687368,2546.6,2546.1,4.02756996]
[1748227622060,3.92696409,2546.5,2546.1,0.1]
[1748227623364,3.92699603,2546.5,2546.1,0.1]
[1748227623555,3.9268842,2546.6,2546.1,0.1]
[1748227623753,3.92680436,2546.6,2546.1,0.1]
[1748227623964,0.8137,2546.7,2546.1,0.1]
[1748227624155,12.84576653,2546.9,2546.4,3.92710075]
[1748227624728,3.92651318,2546.8,2546.3,4.7554842]
[1748227625665,3.92671742,2546.7,2546.2,6.97632215]
[1748227625861,3.92658106,2546.8,2546.3,3.92725209]
[1748227627535,8.65680619,2546.9,2546.4,3.92709569]
[1748227627851,6.09591801,2546.9,2546.5,3.92683639]
[1748227628058,10.02232642,2546.9,2546.4,3.92711115]
[1748227629236,3.9265138,2546.8,2546.4,3.92711115]
[1748227629435,3.9265138,2546.8,2546.3,3.92719727]
[1748227629973,6.09591801,2546.9,2546.1,0.9133]
[1748227630177,4.7304,2546.9,2546.1,0.9133]
[1748227630376,3.92656752,2546.8,2546.2,3.92742125]
[1748227630586,0.6,2546.6,2546.2,3.92735259]
[1748227630889,0.6,2546.6,2546.1,0.9133]
[1748227631089,3.92665017,2546.7,2546.1,4.84074793]
[1748227631240,3.9268478,2546.6,2546.1,4.84074793]
[1748227632373,0.7682,2546.5,2546.1,4.02744793]
[1748227633139,3.92673542,2546.7,2546.2,3.92740708]
[1748227633474,4.69493542,2546.7,2546.2,3.92740708]
[1748227635278,0.7682,2546.7,2546.1,0.1]
[1748227635481,0.6,2546.5,2546.2,3.92735348]
[1748227636680,4.69492993,2546.7,2546.2,3.92735348]
[1748227636982,5.52369966,2546.7,2546.2,3.92735348]
[1748227639209,5.52369966,2546.7,2546.3,3.92725676]
[1748227639478,0.7682,2546.7,2546.3,3.92725676]
[1748227640177,0.7682,2546.7,2546.4,3.9270307]
[1748227640368,0.7682,2546.7,2546.3,3.92718386]
[1748227641068,0.6,2546.6,2546.3,3.92718386]
[1748227641877,0.6,2546.6,2546.4,3.92703848]
[1748227642185,0.6,2546.6,2546.4,4.94606945]
[1748227642475,4.75189391,2547.2,2546.7,3.92653338]
[1748227642676,1.19117219,2547.2,2546.6,6.97572718]
[1748227642850,1.19117219,2547.2,2546.8,3.92641874]
[1748227643282,1.19117219,2547.2,2546.8,3.92645277]
[1748227643481,0.826,2547.2,2546.8,3.92645277]
[1748227643855,0.826,2547.2,2546.8,3.04893572]
[1748227644163,3.92573399,2547.3,2546.8,8.08707012]
[1748227644356,3.92573399,2547.3,2546.8,5.0381344]
[1748227645182,3.92573399,2547.3,2546.8,4.73324083]
[1748227646581,3.92573399,2547.3,2546.8,3.92644083]
[1748227646880,0.826,2547.0,2546.6,11.926776]
[1748227648787,0.826,2547.0,2546.6,3.92677433]
[1748227648952,0.826,2547.0,2546.2,11.96873572]
[1748227648953,0.826,2547.0,2546.8,3.92641258]
[1748227651018,0.826,2547.0,2546.4,11.04893572]
[1748227651209,0.826,2547.0,2546.7,3.92655986]
[1748227652282,0.826,2547.0,2546.8,3.9264803]
[1748227653582,4.6832,2547.2,2546.9,3.92634182]
[1748227653784,4.6832,2547.2,2546.8,3.92642416]
[1748227654995,8.60909009,2547.2,2546.8,3.92642416]
[1748227655196,9.8625572,2547.2,2546.8,3.92642416]
[1748227655839,3.92603675,2547.1,2546.7,3.92656898]
[1748227656033,9.86261214,2547.2,2546.7,3.92656898]
[1748227657737,3.92641055,2546.9,2546.4,8.0]
[1748227657896,3.92641055,2546.9,2546.3,6.9021]
[1748227657897,0.7921,2546.8,2546.5,3.9269437]
[1748227658831,0.7921,2546.8,2546.6,3.92680331]
[1748227659501,0.7921,2546.8,2546.5,3.92687509]
[1748227660039,0.7921,2546.8,2546.4,3.92704788]
[1748227660531,0.7921,2546.8,2546.3,8.7521]
[1748227660838,0.7921,2546.8,2546.4,3.92710286]
[1748227661134,5.19046521,2546.8,2546.3,11.92719171]
[1748227661434,1.26395672,2546.8,2546.3,11.92725122]
[1748227661624,0.7921,2546.8,2546.5,3.92694798]
[1748227661808,0.7921,2546.8,2546.4,3.92700945]
[1748227662136,0.7921,2546.8,2546.3,11.92725122]
[1748227662347,0.7921,2546.8,2546.5,3.92692537]
[1748227664749,0.7921,2546.8,2546.4,3.92702708]
[1748227664949,5.19048443,2546.8,2546.3,11.92715286]
[1748227665457,9.11148443,2546.8,2546.3,11.92715286]
[1748227665621,3.92689448,2546.6,2546.1,4.02756134]
[1748227665826,0.8199,2546.5,2546.1,4.02756134]
[1748227666068,4.7469331,2546.5,2546.1,0.1]
[1748227666222,3.9272718,2546.3,2546.1,0.1]
[1748227666428,7.84817788,2546.4,2546.1,0.1]
[1748227666641,3.921,2546.4,2546.1,0.1]
[1748227666828,3.921,2546.4,2546.1,4.02754516]
[1748227669440,3.92729681,2546.3,2546.1,0.1]
[1748227670986,4.72572125,2546.2,2546.1,0.1]
[1748227672980,5.12709563,2546.2,2546.1,0.1]
[1748227675986,13.12709563,2546.2,2546.1,0.1]
[1748227677981,16.17603135,2546.2,2546.1,0.1]
[1748227678186,18.90034184,2546.2,2546.1,0.1]
[1748227679047,19.26352336,2546.2,2546.1,0.1]
[1748227679387,16.58651947,2546.2,2546.1,0.1]
[1748227679785,24.70051947,2546.2,2546.1,0.1]
[1748227680092,24.33733795,2546.2,2546.1,0.1]
[1748227680585,27.38627367,2546.2,2546.1,0.1]
[1748227681115,27.01434184,2546.2,2546.1,0.1]
[1748227681864,29.36634184,2546.2,2546.1,0.1]
[1748227682798,26.31740612,2546.2,2546.1,0.1]
[1748227683868,18.20340612,2546.2,2546.1,0.1]
[1748227684191,26.31740612,2546.2,2546.1,0.1]
[1748227684396,23.96540612,2546.2,2546.1,0.1]
[1748227685815,27.01434184,2546.2,2546.1,0.1]
[1748227687618,27.38624845,2546.2,2546.1,0.1]
[1748227688217,29.73824845,2546.2,2546.1,0.1]
[1748227688423,34.41624845,2546.2,2546.1,0.1]
[1748227688649,34.77917948,2546.2,2546.1,0.1]
[1748227688784,35.14211709,2546.2,2546.1,0.1]
[1748227692885,26.47811709,2546.2,2546.1,0.1]
[1748227693186,34.59011709,2546.2,2546.1,0.1]
[1748227694128,45.21011709,2546.2,2546.1,0.1]
[1748227694911,45.68072856,2546.2,2546.1,0.1]
[1748227696137,42.62864124,2546.2,2546.1,0.1]
[1748227696305,45.13072856,2546.2,2546.1,0.1]
[1748227697722,44.66326869,2546.2,2546.1,0.1]
[1748227697922,44.66353791,2546.2,2546.1,0.1]
[1748227699437,37.01899778,2546.2,2546.1,0.1]
[1748227699611,45.13299778,2546.2,2546.1,0.1]
[1748227702812,44.66553791,2546.2,2546.1,0.1]
[1748227703447,40.53753791,2546.2,2546.1,0.1]
[1748227703672,18.22115059,2546.2,2546.1,0.1]
[1748227703810,1.49941885,2546.2,2546.1,0.1]
[1748227704007,5.06363327,2546.2,2546.1,0.9135]
[1748227704408,4.32879563,2546.2,2546.1,0.9135]
[1748227704609,4.32879563,2546.2,2546.1,0.1]
[1748227705152,0.46610561,2546.7,2546.1,0.1]
[1748227705355,4.65610561,2546.7,2546.2,0.7649]
[1748227705552,3.92704179,2546.5,2546.2,0.7649]
[1748227705848,3.92704179,2546.5,2546.1,0.1]
[1748227705849,3.92742125,2546.2,2546.1,0.1]
[1748227706205,3.9272829,2546.3,2546.1,0.1]
[1748227706412,3.92742125,2546.2,2546.1,0.1]
[1748227708156,4.52742125,2546.2,2546.1,0.1]
[1748227708357,0.6,2546.2,2546.1,0.1]
[1748227713497,0.6,2546.2,2546.1,0.57926006]
[1748227714195,0.6,2546.2,2546.1,0.1]
[1748227714349,3.92742125,2546.2,2546.1,0.1]
[1748227714747,3.92711278,2546.4,2546.1,0.1]
[1748227714947,3.92737713,2546.3,2546.1,0.1]
[1748227715168,3.92711278,2546.4,2546.1,0.1]
[1748227716183,3.92742125,2546.2,2546.1,0.1]
[1748227716690,3.92726701,2546.3,2546.1,0.9202]
[1748227717557,3.9273629,2546.3,2546.1,0.9202]
[1748227717871,3.92742125,2546.2,2546.1,0.9202]
[1748227718454,3.92742125,2546.2,2546.1,0.1]
[1748227718783,4.71289231,2546.2,2546.1,0.1]
[1748227719781,5.31289231,2546.2,2546.1,0.1]
[1748227720973,5.70130617,2546.2,2546.1,0.1]
[1748227722747,6.49210617,2546.2,2546.1,0.1]
[1748227723471,5.70130617,2546.2,2546.1,0.1]
[1748227724772,4.91583511,2546.2,2546.1,0.1]
[1748227724980,8.83883511,2546.2,2546.1,0.8882]
[1748227725183,0.6,2546.2,2546.1,0.8882]
[1748227725554,3.92696805,2546.5,2546.1,0.8882]
[1748227726484,8.1135141,2546.8,2546.2,3.92742125]
[1748227726667,4.187,2546.8,2546.5,3.92688353]
[1748227726990,4.187,2546.8,2546.6,0.8094]
[1748227727199,3.923,2547.0,2546.6,4.73612919]
[1748227727411,3.92589906,2547.2,2546.7,3.92663315]
[1748227727561,7.84903916,2547.1,2546.6,4.73614444]
[1748227727766,0.6,2546.8,2546.7,3.92665017]
[1748227728067,0.6,2546.8,2546.7,4.72155017]
[1748227729399,3.92596043,2547.2,2546.7,4.72155017]
[1748227729573,7.84880468,2547.3,2546.7,4.72155017]
[1748227730510,3.922,2547.2,2546.9,0.7862]
[1748227732475,7.84792814,2547.2,2546.9,0.7862]
[1748227732679,0.6,2547.0,2546.9,0.7862]
[1748227734219,0.6,2547.0,2546.9,1.25746642]
[1748227736402,0.6,2547.0,2546.9,0.7862]
[1748227738840,0.6,2547.0,2546.5,3.9269015]
[1748227738841,0.6,2547.0,2546.5,0.786]
[1748227739221,3.92651095,2546.8,2546.5,0.786]
[1748227740561,3.92634182,2546.9,2546.5,0.786]
[1748227740738,3.92651266,2546.8,2546.5,0.786]
[1748227741128,3.92666073,2546.7,2546.5,0.786]
[1748227741947,3.92638952,2546.9,2546.5,0.786]
[1748227743266,4.52622033,2547.0,2546.5,5.18425586]
[1748227743424,3.92635122,2546.9,2546.5,1.2573035]
[1748227744765,4.52627388,2547.0,2546.5,5.18425099]
[1748227745467,3.92636701,2546.9,2546.5,1.2573035]
[1748227746462,0.6,2547.0,2546.6,3.9267953]
[1748227746666,4.52627017,2547.0,2546.6,0.91111927]
[1748227748867,3.92638232,2546.9,2546.6,0.91111927]
[1748227749269,4.52621433,2547.0,2546.6,0.91111927]
[1748227750862,0.6,2547.0,2546.7,0.8281]
[1748227751036,0.6,2547.0,2546.7,4.79391853]
[1748227751235,0.6,2547.0,2546.7,0.8281]
[1748227753974,0.6,2547.0,2546.9,4.68924182]
[1748227754268,0.766,2547.9,2547.4,3.92541772]
[1748227754472,0.766,2547.9,2547.4,3.92546473]
[1748227754630,0.766,2547.9,2547.3,4.68857437]
[1748227755030,7.84570756,2548.0,2547.3,4.68857437]
[1748227755272,3.92502978,2547.8,2547.3,4.68857437]
[1748227755468,3.92502978,2547.8,2547.3,5.55002556]
[1748227756375,0.7992,2548.3,2547.5,3.92541707]
[1748227756596,3.921,2548.0,2547.4,4.72326776]
[1748227757096,3.921,2548.0,2547.5,3.92537511]
[1748227757392,3.921,2548.0,2547.5,3.92529299]
[1748227757594,3.921,2548.0,2547.6,3.9252603]
[1748227757897,9.30808297,2548.3,2547.6,3.9252603]
[1748227758096,4.9832,2548.3,2547.7,4.74067045]
[1748227758259,8.9074639,2548.3,2547.8,3.9248236]
[1748227758461,8.9074639,2548.3,2547.7,4.74063184]
[1748227758664,3.9243614,2548.2,2547.7,4.74063184]
[1748227758865,3.9243614,2548.2,2547.7,0.8156]
[1748227758866,3.92436463,2548.2,2547.7,0.8156]
[1748227759190,4.184,2548.3,2547.9,3.92477086]
[1748227759390,4.184,2548.3,2547.8,3.92486191]
[1748227760216,8.1082223,2548.3,2547.8,3.92486191]
[1748227760389,8.1082223,2548.3,2547.7,1.28969709]
[1748227760390,3.92434484,2548.2,2547.7,5.21472956]
[1748227760705,8.10821961,2548.3,2547.8,3.92495407]
[1748227761362,8.10821961,2548.3,2547.8,4.83894155]
[1748227765967,4.184,2548.3,2547.8,4.83894155]
[1748227767012,4.184,2548.3,2547.9,3.92475423]
[1748227767916,3.92409653,2548.4,2547.9,3.92475423]
[1748227768414,4.7228,2548.6,2548.1,3.9243509]
[1748227768713,8.6466607,2548.6,2548.0,3.92455281]
[1748227768916,8.6466607,2548.6,2548.1,3.92446462]
[1748227769121,4.7228,2548.6,2548.2,3.92425837]
[1748227769313,3.92,2548.6,2548.1,3.92446462]
[1748227769513,7.84380598,2548.6,2548.1,3.92446462]
[1748227771125,3.92388487,2548.5,2548.0,4.62245605]
[1748227771323,3.92356887,2548.7,2548.0,0.69788733]
[1748227771541,3.92372282,2548.6,2548.0,3.92452579]
[1748227771692,3.92372282,2548.6,2548.1,3.92448168]
[1748227772803,3.92372282,2548.6,2547.9,4.75378124]
[1748227772804,3.92391142,2548.5,2548.0,3.92458687]
[1748227773004,3.92391142,2548.5,2548.1,3.92449235]
[1748227774332,3.92391142,2548.5,2547.5,0.7674]
[1748227774333,3.92456703,2548.1,2547.5,0.7674]
[1748227774532,3.92456703,2548.1,2547.6,3.92519267]
[1748227775637,4.70463874,2548.2,2547.5,0.7674]
[1748227775928,3.92451308,2548.1,2547.6,3.92516636]
[1748227776733,4.70461366,2548.2,2547.7,3.92509153]
[1748227776935,0.7835,2548.5,2548.1,3.92441422]
[1748227778794,0.7835,2548.7,2548.2,0.03924221]
[1748227778992,3.92372658,2548.6,2548.1,4.75291917]
[1748227779804,4.70715146,2548.7,2548.1,4.75291917]
[1748227781027,3.92374682,2548.6,2548.1,4.75291917]
[1748227781245,4.70716649,2548.7,2548.2,3.92425601]
[1748227781529,3.92344874,2548.8,2548.3,3.924104]
[1748227781732,3.92357856,2548.7,2548.2,3.92426372]
[1748227782408,3.92344527,2548.8,2548.3,3.9241378]
[1748227782618,3.92341952,2548.8,2548.3,3.9240953]
[1748227782837,3.92341952,2548.8,2548.4,0.7848434]
[1748227783035,3.92341952,2548.8,2548.3,3.9240953]
[1748227784097,3.92357555,2548.7,2548.2,3.92426171]
[1748227790304,3.92347713,2548.8,2548.3,3.92416175]
[1748227790619,3.92356921,2548.7,2548.2,3.92425384]
[1748227792958,0.8998,2548.9,2548.1,7.84625556]
[1748227793252,3.92395905,2548.5,2548.1,7.84625556]
[1748227793416,3.92395905,2548.5,2548.1,1.69625556]
[1748227793818,3.92380804,2548.6,2548.1,5.62074342]
[1748227795968,3.92380804,2548.6,2548.1,5.62066366]
[1748227796758,3.92362872,2548.7,2548.2,3.92433081]
[1748227796962,3.92362872,2548.7,2548.2,4.87883761]
[1748227798565,3.92362872,2548.7,2548.2,4.91807667]
[1748227799060,3.92362872,2548.7,2548.2,4.87883761]
[1748227799366,3.92342585,2548.8,2548.2,4.87883485]
[1748227799671,3.92342585,2548.8,2548.3,3.92418475]
[1748227799873,3.92342585,2548.8,2548.3,4.88733671]
[1748227801227,3.9235765,2548.7,2548.3,0.96315196]
[1748227801384,3.9234237,2548.8,2548.3,4.88724047]
[1748227802093,3.9234237,2548.8,2548.4,3.92401952]
[1748227802407,3.9234237,2548.8,2548.3,4.88727635]
[1748227803334,3.92359191,2548.7,2548.3,0.96315196]
[1748227804903,3.9238466,2548.6,2548.1,4.75297246]
[1748227805240,3.92378793,2548.6,2548.1,4.75298908]
[1748227805595,3.9236482,2548.7,2548.2,3.92431991]
[1748227806111,0.1,2548.9,2548.4,0.7776]
[1748227806289,0.1,2548.9,2548.4,0.47018673]
[1748227806290,4.71983715,2548.8,2548.4,0.47018673]
[1748227806485,3.92396054,2548.5,2547.9,6.15]
[1748227806734,3.92426598,2548.3,2547.6,6.15]
[1748227807026,3.05208732,2548.1,2547.6,3.92517627]
[1748227807228,3.92456532,2548.1,2547.6,3.92517627]
[1748227807722,3.92456532,2548.1,2547.5,3.92530164]
[1748227807928,3.92456532,2548.1,2547.4,4.69484537]
[1748227807929,3.92456532,2548.1,2547.6,4.78725424]
[1748227809122,3.92468031,2548.0,2547.6,0.8620147]
[1748227809632,3.92468031,2548.0,2547.5,3.92541521]
[1748227809805,3.92454963,2548.1,2547.5,3.92541521]
[1748227810002,3.92454963,2548.1,2547.6,3.92525451]
[1748227812335,4.72070486,2548.2,2547.7,3.92509897]
[1748227812637,4.72070486,2548.2,2547.6,3.92516505]
[1748227812810,4.72070486,2548.2,2547.7,0.78505818]
[1748227813015,3.92451668,2548.1,2547.7,0.78505818]
[1748227813415,3.92451668,2548.1,2547.6,3.92521634]
[1748227814645,3.92468591,2548.0,2547.5,3.92534429]
[1748227815367,3.92487281,2547.9,2547.4,4.69484314]
[1748227816961,3.92487281,2547.9,2547.5,3.92541515]
[1748227817466,3.92487281,2547.9,2547.4,4.69480167]
[1748227817619,3.92487281,2547.9,2547.5,1.47705161]
[1748227817820,3.92470847,2548.0,2547.5,5.40246399]
[1748227820393,4.72069483,2548.2,2547.6,3.92523539]
[1748227820548,3.92459758,2548.1,2547.6,3.92523539]
[1748227824506,0.7963,2548.2,2547.7,3.92508706]
[1748227824707,3.92423263,2548.3,2547.9,3.92478949]
[1748227824708,3.92,2548.3,2547.9,3.92478949]
[1748227825182,0.782,2548.4,2548.0,3.92458036]
[1748227825878,4.7060598,2548.4,2547.9,3.9247309]
[1748227826088,3.92476828,2548.0,2547.5,4.75220378]
[1748227826253,0.782,2547.9,2547.2,8.0]
[1748227826460,3.92495486,2547.8,2547.1,0.8269]
[1748227826655,0.782,2547.5,2547.1,4.75285638]
[1748227826871,4.70749352,2547.5,2547.0,3.92615893]
[1748227827172,0.782,2547.5,2547.0,5.21176554]
[1748227827367,4.70744177,2547.5,2547.0,5.21176554]
[1748227827575,0.782,2547.5,2547.0,5.21176554]
[1748227828088,0.782,2547.5,2547.1,3.92595482]
[1748227828387,4.70744688,2547.5,2547.0,5.21179728]
[1748227829762,0.782,2547.5,2547.0,5.21179728]
[1748227830189,4.70742311,2547.5,2547.0,1.28565102]
[1748227830359,4.70742311,2547.5,2546.9,4.75314079]
[1748227830558,4.70742311,2547.5,2547.0,3.92610532]
[1748227833008,0.782,2547.5,2547.1,3.92601894]
[1748227833199,0.782,2547.5,2547.2,3.92587876]
[1748227834538,0.7994,2547.7,2547.2,3.92587876]
[1748227834711,3.92,2547.8,2547.4,3.92546347]
[1748227835016,7.84498034,2547.8,2547.3,5.11413253]
[1748227837113,4.7194,2547.9,2547.5,3.92537142]
[1748227837314,4.7194,2547.9,2547.4,3.92548083]
[1748227837620,4.7194,2547.9,2547.5,4.82934539]
[1748227838999,0.7994,2547.9,2547.6,3.92520114]
[1748227839206,3.92,2548.0,2547.6,3.92520114]
[1748227842608,3.92425876,2548.3,2547.8,3.92493985]
[1748227843528,7.84425876,2548.3,2547.8,3.92493985]
[1748227847434,3.92449275,2548.1,2547.6,6.15]
[1748227847639,3.92463012,2548.1,2547.6,10.07514743]
[1748227848439,4.72611485,2548.2,2547.7,3.92509396]
[1748227848611,5.98314977,2548.2,2547.7,3.92509396]
[1748227850655,0.1,2548.9,2547.7,0.8258]
[1748227850846,4.72245387,2548.4,2547.9,3.92465982]
[1748227851004,4.7184,2548.4,2548.0,3.92460764]
[1748227851404,8.64244739,2548.4,2547.9,3.92471836]
[1748227852103,4.72244739,2548.4,2547.9,3.92471836]
[1748227856219,0.7984,2548.4,2547.8,3.92492917]
[1748227856551,4.72244214,2548.4,2547.9,4.39978246]
[1748227857355,0.7984,2548.4,2548.1,3.92448795]
[1748227857554,0.7984,2548.4,2548.0,3.92456402]
[1748227857731,4.72243447,2548.4,2547.9,4.39978035]
[1748227858055,0.7984,2548.4,2548.0,3.92455933]
[1748227860944,3.92420579,2548.3,2547.9,4.39979861]
[1748227861260,3.92420579,2548.3,2547.9,0.47507292]
[1748227864556,4.72251706,2548.4,2547.9,4.0073717]
[1748227865477,3.9241986,2548.3,2547.9,0.47507292]
[1748227866855,0.7984,2548.4,2547.9,0.47507292]
[1748227866856,4.72251398,2548.4,2547.9,4.0073705]
[1748227867357,3.9242011,2548.3,2547.9,0.47507292]
[1748227868225,3.9242011,2548.3,2547.8,3.53239913]
[1748227871191,3.9241901,2548.3,2547.6,6.15]
[1748227871399,0.7885,2547.7,2547.2,8.0]
[1748227871545,4.71372069,2547.7,2547.2,11.53328896]
[1748227871745,4.71372069,2547.7,2547.2,3.53328896]
[1748227872884,0.7885,2547.7,2547.3,3.53314938]
[1748227874569,0.7885,2547.7,2547.2,3.53323699]
[1748227874570,4.71362923,2547.7,2547.2,3.53323699]
[1748227875283,0.7885,2547.7,2547.3,3.53312164]
[1748227876495,0.7885,2547.7,2547.3,3.53306799]
[1748227876655,3.92,2548.3,2547.5,0.7516]
[1748227876863,3.92445769,2548.2,2547.5,10.4344591]
[1748227877063,4.67821164,2548.1,2547.6,3.53265638]
[1748227877960,0.7537,2548.1,2547.7,3.53253099]
[1748227880397,3.92437038,2548.2,2547.7,3.53254865]
[1748227880704,4.6939989,2548.3,2547.8,4.23896916]
[1748227881118,4.6939989,2548.3,2547.8,3.5324424]
[1748227881432,0.7697,2548.3,2548.0,3.5321189]
[1748227881858,3.92391501,2548.5,2548.0,3.5321189]
[1748227882061,4.70881501,2548.5,2548.0,3.5321189]
[1748227883499,4.70886013,2548.5,2548.0,3.53217918]
[1748227884404,0.7849,2548.5,2548.1,3.53201722]
[1748227884603,4.7087809,2548.5,2548.0,4.31699074]
[1748227886705,3.92407596,2548.4,2548.0,0.78481156]
[1748227887279,4.70884696,2548.5,2548.0,4.31696783]
[1748227888211,3.92403741,2548.4,2548.0,4.31696783]
[1748227889124,3.92403741,2548.4,2548.0,0.78481156]
[1748227889416,0.7849,2548.5,2548.0,0.78481156]
[1748227889587,4.70878662,2548.5,2548.0,4.31692938]
[1748227890125,0.7849,2548.5,2548.1,3.53203332]
[1748227890285,4.70880404,2548.5,2548.0,4.31692914]
[1748227892614,3.92406612,2548.4,2548.0,0.78481156]
[1748227893910,3.92406612,2548.4,2547.9,3.53226193]
[1748227894512,0.7633,2548.2,2547.8,3.53239295]
[1748227894822,4.68769693,2548.2,2547.6,6.15]
[1748227894975,3.92454302,2548.1,2547.6,9.68265603]
[1748227895174,0.7633,2548.2,2547.7,3.53259728]
[1748227895485,4.68766385,2548.2,2547.7,4.91193324]
[1748227895926,0.7633,2548.2,2547.8,3.53244562]
[1748227897588,4.68767657,2548.2,2547.7,4.9118749]
[1748227898417,4.68767657,2548.2,2547.8,3.53244748]
[1748227898418,0.7633,2548.2,2547.8,3.53244748]
[1748227898720,0.7633,2548.2,2547.9,3.53230455]
[1748227898876,0.7633,2548.2,2547.9,4.23894049]
[1748227901015,0.7633,2548.2,2547.9,0.70663594]
[1748227902827,4.68764321,2548.2,2547.9,0.70663594]
[1748227903117,4.68764321,2548.2,2547.7,3.53253432]
[1748227903710,4.68764321,2548.2,2547.7,3.53254729]
[1748227904330,0.7978,2547.9,2547.6,6.15]
[1748227904533,0.7978,2547.9,2547.2,9.68322785]
[1748227904534,3.92511352,2547.7,2547.2,9.68322785]
[1748227904685,3.92503117,2547.8,2547.3,4.57705192]
[1748227904884,3.92503117,2547.8,2547.3,3.53314913]
[1748227909321,4.72267581,2547.9,2547.4,3.53299961]
[1748227909495,4.72267581,2547.9,2547.4,3.53294764]
[1748227909693,3.92496624,2547.8,2547.3,3.53307714]
[1748227909885,3.92496624,2547.8,2547.3,4.31529193]
[1748227910081,3.92496624,2547.8,2547.4,3.53301112]
[1748227910312,0.7978,2547.9,2547.4,3.53301112]
[1748227910683,3.92496175,2547.8,2547.3,4.31529381]
[1748227911409,3.9251534,2547.7,2547.3,0.78221479]
[1748227912124,3.92502423,2547.8,2547.3,4.31535989]
[1748227917639,8.0,2548.2,2547.4,1.62801649]
[1748227917929,0.8088,2548.4,2547.4,1.62801649]
[1748227917930,0.8088,2548.4,2547.8,3.53236659]
[1748227918129,4.7288,2548.4,2547.8,4.3362852]
[1748227918300,3.92419399,2548.3,2547.8,4.3362852]
[1748227922352,3.92419399,2548.3,2547.8,3.5323852]
[1748227923345,8.65287286,2548.4,2547.6,10.43519066]
[1748227923534,3.92426283,2548.3,2547.8,3.53244635]
[1748227924652,8.65287286,2548.4,2547.7,1.04351907]
[1748227924839,3.92426323,2548.3,2547.8,3.53245129]
[1748227926342,3.92426323,2548.3,2547.7,1.04351907]
[1748227926343,3.92426323,2548.3,2547.9,3.53231574]
[1748227926950,3.92426323,2548.3,2547.8,3.53238994]
[1748227927253,3.92426323,2548.3,2547.8,4.57484277]
[1748227931359,4.73287437,2548.4,2547.9,3.53230196]
[1748227931565,3.92420277,2548.3,2547.9,3.53230196]
[1748227932366,0.8088,2548.4,2548.0,3.53213983]
[1748227933131,0.8088,2548.4,2548.1,3.53203507]
[1748227933561,0.8088,2548.4,2548.0,3.5321091]
[1748227933865,0.8088,2548.4,2548.0,4.23854985]
[1748227934066,4.73283164,2548.4,2548.0,0.70644075]
[1748227934264,4.73283164,2548.4,2547.9,3.53225619]
[1748227936437,0.8088,2548.4,2548.0,3.53206611]
[1748227936632,4.73283453,2548.4,2547.9,3.53225112]
[1748227939581,0.8031,2548.8,2548.0,6.7]
[1748227939877,0.1,2548.9,2548.6,3.53134894]
[1748227940035,0.1,2548.9,2548.5,3.53143039]
[1748227940234,3.92355411,2548.8,2548.3,9.68175823]
[1748227940775,0.1,2548.9,2548.4,0.03923562]
[1748227940952,0.1,2548.9,2548.6,3.53123122]
[1748227941132,0.1,2548.9,2548.7,0.35312312]
[1748227941744,0.1,2548.9,2548.8,3.53107344]
[1748227943276,0.1,2548.9,2548.7,0.35312312]
[1748227943861,0.1,2548.9,2548.7,3.88432282]
[1748227944064,0.1,2548.9,2548.7,0.35312312]
[1748227944254,0.1,2548.9,2548.6,3.53131104]
[1748227944861,0.1,2548.9,2548.6,3.53127092]
[1748227945176,0.1,2548.9,2548.4,6.15]
[1748227945373,4.0233189,2548.9,2548.4,6.15]
[1748227945575,0.8086,2548.8,2548.4,9.6815529]
[1748227945777,0.8086,2548.8,2548.5,1.04713529]
[1748227946368,0.8086,2548.8,2548.5,4.57858844]
[1748227946566,0.8086,2548.8,2548.5,4.57856079]
[1748227948482,0.8086,2548.8,2548.5,4.57854758]
[1748227950385,0.1,2548.9,2548.5,4.5785589]
[1748227950575,0.1,2548.9,2548.6,4.57016442]
[1748227951959,0.1,2548.9,2548.6,1.03883661]
[1748227952588,0.1,2548.9,2548.6,4.57017437]